[Event "10th Cherry Blossom Classic 2023"]
[Site "Dulles"]
[Date "2023.05.29"]
[Round "8.10"]
[White "Roselli Mailhe, Bernardo"]
[Black "Slate, Kent"]
[Result "1-0"]
[ECO "D38"]
[WhiteElo "2380"]
[BlackElo "1989"]
[Annotator "TA"]
[PlyCount "105"]
[EventDate "2023.05.24"]
[EventType "swiss"]
[EventCountry "USA"]
[SourceTitle "playchess.com"]
[Source "ChessBase"]
[SourceQuality "1"]
[TimeControl "5400+30"]

{[%evp 12,105,14,11,29,29,20,20,29,23,21,19,28,32,24,0,39,0,0,-18,-18,-34,-7,-7,-14,-14,0,-20,64,62,108,114,156,152,150,150,165,160,161,153,200,164,164,117,153,145,147,114,158,157,187,184,231,181,320,320,314,297,335,327,361,356,351,347,419,394,403,406,439,403,400,377,494,458,479,483,512,500,478,466,456,451,1032,895,1257,1259,1277,1282,1030,762,5093,3933,2983,4063,29984,29985]} 1. d4 {[%emt 0:00:24]} Nf6 {[%emt 0:00:07]} 2. c4 {[%emt 0:00:18]} e6 {[%emt 0:00:10]} 3. Nf3 {[%emt 0:00:04]} d5 {[%emt 0:00:20]} 4. Nc3 {[%emt 0:00:05]} Bb4 {[%emt 0:00:06]} 5. Qa4+ {[%emt 0:00:04]} Nc6 {[%emt 0:00:11]} 6. e3 {[%emt 0:00:05]} O-O {[%emt 0:00:10]} 7. Bd2 {[%emt 0:00:08]} Re8 {[%emt 0:00:07] D38: Queen's Gambit Declined: Ragozin Defence (4 Nf3 Bb4).} 8. a3 {[%emt 0:00:11]} Bf8 {[%emt 0:00:31]} 9. Qc2 {[%emt 0:02:22]} e5 {[%emt 0:13:04] The position is equal.} 10. dxe5 {[%emt 0:00:19]} Nxe5 {[%emt 0:00:35]} 11. cxd5 {[%emt 0:00:08]} Nxd5 {[%emt 0:07:57]} 12. O-O-O {[%emt 0:08:07]} Nxf3 {[%emt 0:09:13]} 13. gxf3 {[%emt 0:00:33] [#]} Nb6 $146 {[%emt 0:02:18]} ({Predecessor:} 13... a5 14. Rg1 Nb4 15. Qb1 Qf6 16. Ne4 Qc6+ 17. Bc3 Bf5 18. Nf6+ Qxf6 19. Bxf6 Bxb1 20. Kxb1 {1-0 Mamedyarov,S (2765)-Ding,L (2799) Speed Chess Chess.com INT blitz 2021 (1.34)}) 14. Rg1 {[%emt 0:07:40]} Qh4 {[%emt 0:04:08][%csl LRf2,LRh2]} 15. Ne4 {[%emt 0:02:32]} Bf5 {[%emt 0:02:28]} 16. Bd3 $1 {[%emt 0:00:15][%cal Oe4f6,Bf1d3,Bd3f5,Bf5e4][%mdl 32]} Rad8 {[%emt 0:06:17]} (16... Qxh2 $2 17. Nf6+ Kh8 18. Rh1 $18) 17. Nf6+ {[%emt 0:06:13][%mdl 64] [#] Discovered Attack} Qxf6 {[%emt 0:00:09]} 18. Bxf5 {[%emt 0:00:03]} g6 {[%emt 0:03:48][%cal Ob6a4]} 19. Bc3 {[%emt 0:11:51]} Qc6 {[%emt 0:04:41]} ({Black should play} 19... Rxd1+ $11 20. Rxd1 Qh4) 20. Be4 $14 {[%emt 0:03:29][%mdl 64] Deflection. This pair of bishops is nice.} Qe6 {[%emt 0:03:36]} (20... Rxd1+ $14 21. Rxd1 Qb5) 21. Bxb7 $16 {[%emt 0:05:45]} Nc4 {[%emt 0:06:59][%cal Oc4a3]} 22. Rxd8 {[%emt 0:07:19]} Rxd8 {[%emt 0:00:07]} 23. Qe4 {[%emt 0:00:06]} Qxe4 {[%emt 0:03:09]} 24. Bxe4 {[%emt 0:04:02]} ({Don't take} 24. fxe4 Bg7 $16) 24... Bg7 {[%emt 0:01:12]} 25. Kc2 {[%emt 0:02:03]} Rb8 {[%emt 0:02:47]} (25... Nd6 $16 26. Bd3 f5) 26. Bxg7 {[%emt 0:04:20]} Kxg7 $18 {[%emt 0:00:10][%mdl 4096] Endgame KRB-KRN} 27. Rb1 {[%emt 0:00:56]} (27. Bd3 $18 Ne5 28. Be2) 27... Rd8 {[%emt 0:02:56]} 28. f4 {[%emt 0:02:40]} Rd6 {[%emt 0:00:43] [#] Hoping for ...Nd2.} 29. Bd3 {[%emt 0:01:25]} Nb6 {[%emt 0:00:37]} 30. Rc1 {[%emt 0:01:49]} Na4 {[%emt 0:06:17][%cal Oa4b2]} 31. b4 {[%emt 0:06:35]} Nb6 {[%emt 0:02:17]} (31... Rc6+ $142 32. Kd2 Rxc1 33. Kxc1 Kf8) 32. Be2 {[%emt 0:00:11]} f6 {[%emt 0:04:42]} (32... Rc6+ {was worth a try.} 33. Kd1 Rxc1+ 34. Kxc1 Kf8) 33. Kb3 {[%emt 0:00:56]} Rd7 {[%emt 0:00:28]} 34. Bb5 {[%emt 0:01:30]} Re7 {[%emt 0:00:27]} 35. Rd1 {[%emt 0:00:22]} g5 {[%emt 0:00:49]} 36. fxg5 {[%emt 0:04:35]} fxg5 {[%emt 0:00:09]} 37. a4 {[%emt 0:01:03][%cal Ba3a4,Ba4a5][%mdl 32]} Rf7 {[%emt 0:03:03]} 38. a5 {[%emt 0:01:28]} Nc8 {[%emt 0:00:06]} 39. Rd7 {[%emt 0:01:01]} Nd6 {[%emt 0:00:33]} 40. Rxf7+ {[%emt 0:00:09]} Kxf7 {[%emt 0:00:15] KB-KN} 41. Bd3 {[%emt 0:00:04]} h6 {[%emt 0:01:23]} 42. Kc3 {[%emt 0:00:12]} Ke6 {[%emt 0:00:44]} 43. Kd4 {[%emt 0:00:09]} Kd7 {[%emt 0:01:47]} 44. e4 {[%emt 0:02:37][%cal Be3e4,Be4e5][%mdl 32]} Nb7 {[%emt 0:01:06]} 45. e5 {[%emt 0:03:02]} Nd8 {[%emt 0:01:23]} 46. Bb5+ {[%emt 0:00:55]} Ke6 {[%emt 0:02:32]} (46... Ke7 $142 47. Kd5 Ne6) 47. Bc4+ {[%emt 0:01:22]} Kd7 {[%emt 0:00:08]} 48. Bd5 {[%emt 0:00:07]} c6 {[%emt 0:01:55]} 49. Bc4 {[%emt 0:00:12]} Kc7 {[%emt 0:01:06]} 50. a6 {[%emt 0:01:38]} Kd7 {[%emt 0:00:46]} 51. Ke4 {[%emt 0:01:38]} Ke7 {[%emt 0:00:41]} 52. Kf5 {[%emt 0:00:07]} c5 {[%emt 0:00:06]} 53. b5 {[%emt 0:00:12] Weighted Error Value: White=0.06 (flawless) /Black=0.47} 1-0

[Event "10th Cherry Blossom Classic 2023"]
[Site "Dulles"]
[Date "2023.05.29"]
[Round "8.11"]
[White "Altman, Joshua"]
[Black "Muzychuk, Anna"]
[Result "1/2-1/2"]
[ECO "D38"]
[WhiteElo "2120"]
[BlackElo "2504"]
[Annotator "TA"]
[PlyCount "103"]
[EventDate "2023.05.24"]
[EventType "swiss"]
[EventCountry "USA"]
[SourceTitle "playchess.com"]
[Source "ChessBase"]
[SourceQuality "1"]
[TimeControl "5400+30"]

{[%evp 13,103,0,25,6,27,27,27,29,55,46,52,52,51,32,47,7,39,18,42,0,0,0,18,0,4,6,6,9,18,14,25,-2,54,0,7,-6,31,30,41,0,71,14,73,0,0,0,89,28,27,12,19,6,30,9,9,10,9,8,8,0,0,0,0,0,0,0,0,0,0,0,0,0,0,0,0,0,0,0,0,0,0,0,0,0,0,0,0,0,0,0,0,0]} 1. d4 {[%emt 0:06:35]} Nf6 {[%emt 0:02:49]} 2. c4 {[%emt 0:00:03]} e6 {[%emt 0:00:41]} 3. Nf3 {[%emt 0:00:05]} d5 {[%emt 0:00:04]} 4. cxd5 {[%emt 0:00:40]} exd5 {[%emt 0:00:06]} 5. Nc3 {[%emt 0:00:09]} c6 {[%emt 0:00:08]} 6. Bg5 {[%emt 0:00:29][%cal Bc1g5,Bg5h4,Bh4g3][%mdl 32]} h6 {[%emt 0:00:21]} 7. Bh4 {[%emt 0:01:05]} Bb4 {[%emt 0:00:27]} 8. Qc2 {[%emt 0:08:22] D38: Queen's Gambit Declined: Ragozin Defence (4 Nf3 Bb4).} g5 {[%emt 0:01:46]} 9. Bg3 {[%emt 0:00:05]} Ne4 {[%emt 0:00:06]} 10. Nd2 {[%emt 0:03:45] White has an edge.} Bf5 {[%emt 0:06:34]} 11. Ndxe4 {[%emt 0:01:29]} Bxe4 {[%emt 0:00:05]} 12. Qd2 {[%emt 0:04:39]} Nd7 {[%emt 0:01:07]} 13. f3 {[%emt 0:13:46]} Bg6 {[%emt 0:00:08] [#]} 14. e3 $146 {[%emt 0:02:47]} (14. h4 $5 {[%cal Rh4g5]}) ({Predecessor:} 14. a3 Bxc3 15. Qxc3 Qe7 16. e3 f6 17. Be2 O-O 18. h4 Rae8 19. Bf2 Kg7 20. O-O-O {1-0 Pfeiffer,T-Diesterweg,U PF-ch Eisenberg 1993}) 14... O-O {[%emt 0:01:04]} 15. Bd3 {[%emt 0:07:24]} f5 {[%emt 0:00:08]} 16. O-O {[%emt 0:02:53]} Qf6 {[%emt 0:00:06]} 17. a3 {[%emt 0:03:46]} Ba5 {[%emt 0:01:24]} 18. Bf2 {[%emt 0:13:20]} Rae8 {[%emt 0:00:54]} 19. Qc2 {[%emt 0:02:08]} Kg7 {[%emt 0:01:06]} 20. Qa4 {[%emt 0:10:18]} Qd8 {[%emt 0:02:14]} 21. b4 {[%emt 0:02:28]} Bc7 {[%emt 0:06:14]} 22. b5 $1 {[%emt 0:01:10]} Rf6 {[%emt 0:01:23]} ({Better is} 22... Qb8 $11) 23. bxc6 {[%emt 0:03:11]} (23. Qxa7 $14 Re7 24. Rab1 (24. Qxb7 Nc5 $17 {[%mdl 64] Double Attack})) 23... bxc6 {[%emt 0:00:05]} 24. Rac1 {[%emt 0:01:35]} Re7 {[%emt 0:00:29]} 25. Qc2 {[%emt 0:02:08]} Nf8 {[%emt 0:00:24]} 26. Na4 {[%emt 0:04:36][%cal Bc3a4,Ba4c5,Bc5a6,Ba6b4][%mdl 32]} h5 {[%emt 0:01:50] [#]} (26... Qd6 $11 27. g3 Nd7) 27. f4 {[%emt 0:02:58]} Qd6 {[%emt 0:05:09]} (27... gxf4 $11 28. exf4 (28. Bh4 Rxe3 29. Nc5 Qd6 $11) 28... Bxf4) 28. Qc5 {[%emt 0:00:58]} (28. fxg5 $2 Qxh2#) (28. Bg3 $16 g4 29. Bf2 (29. Bh4 Rxe3 30. Nc5 Rf7 $11)) 28... Qxc5 {[%emt 0:05:32]} 29. Nxc5 {[%emt 0:00:07]} Nh7 {[%emt 0:00:06]} (29... gxf4 $11 {keeps the balance.} 30. Bh4 fxe3) 30. fxg5 {[%emt 0:00:37] White is more active.} (30. Na6 $16) 30... Nxg5 $11 {[%emt 0:00:02]} 31. Bh4 {[%emt 0:00:47]} Kh6 {[%emt 0:00:06][%cal Bg7h6,Bh6g5,Bg5g6,Bg6f5][%mdl 32]} 32. Rfe1 {[%emt 0:01:23]} Ref7 {[%emt 0:04:41]} 33. Na6 {[%emt 0:00:31] Threatens to win with Nxc7.} Bd6 {[%emt 0:01:20] The position is equal.} 34. Nb4 {[%emt 0:00:28]} (34. Rxc6 Bxh2+ 35. Kxh2 Rxc6 $17) 34... f4 {[%emt 0:00:05] Wards off Bg3} 35. Bxg5+ {[%emt 0:00:37]} (35. Rxc6 $2 {loses.} Bxb4 36. Bxg5+ Kxg5 $19) 35... Kxg5 {[%emt 0:00:09]} 36. Bxg6 {[%emt 0:00:27]} (36. Rxc6 $2 {is the wrong capture.} Bxb4 37. exf4+ Kh6 38. Rxf6 Rxf6 39. axb4 Bxd3 $19) 36... Kxg6 {[%emt 0:00:34]} 37. Nxc6 {[%emt 0:00:22]} f3 {[%emt 0:01:45]} 38. gxf3 {[%emt 0:00:03]} ({Not} 38. Ne5+ $2 Bxe5 39. gxf3 Bd6 $19) 38... Rxf3 {[%emt 0:00:03]} 39. Ne5+ {[%emt 0:00:16]} Bxe5 {[%emt 0:00:07]} 40. dxe5 {[%emt 0:00:02][%mdl 4096] Endgame KRR-KRR} Kf5 {[%emt 0:00:09]} 41. Rc5 {[%emt 0:01:42]} Rg7+ {[%emt 0:16:19]} 42. Kh1 {[%emt 0:00:04]} Ke4 {[%emt 0:06:48]} 43. Rd1 {[%emt 0:00:27]} Rxe3 {[%emt 0:01:21] And now ...d4 would win.} 44. Rcxd5 {[%emt 0:00:28]} Rxa3 {[%emt 0:00:15]} 45. e6 {[%emt 0:00:20]} Re7 {[%emt 0:00:08]} 46. Rxh5 {[%emt 0:00:31]} Rxe6 {[%emt 0:00:17]} 47. Rh4+ {[%emt 0:00:58]} Ke5 {[%emt 0:00:44]} 48. Re1+ {[%emt 0:00:24]} Kd5 {[%emt 0:00:23]} 49. Rh5+ {[%emt 0:00:22]} Kd6 {[%emt 0:00:04]} 50. Rd1+ {[%emt 0:00:17]} Kc6 {[%emt 0:00:15]} 51. Rc1+ {[%emt 0:00:22]} Kd6 {[%emt 0:00:07]} 52. Rd1+ {[%emt 0:00:03] Weighted Error Value: White=0.13 (very precise) /Black=0.17 (very precise)} 1/2-1/2

[Event "10th Cherry Blossom Classic 2023"]
[Site "Dulles"]
[Date "2023.05.29"]
[Round "8.12"]
[White "Zhukova, Natalia"]
[Black "Kanli, Alperen"]
[Result "1/2-1/2"]
[ECO "D20"]
[WhiteElo "2324"]
[BlackElo "2111"]
[Annotator "TA"]
[PlyCount "120"]
[EventDate "2023.05.24"]
[EventType "swiss"]
[EventCountry "USA"]
[SourceTitle "playchess.com"]
[Source "ChessBase"]
[SourceQuality "1"]
[TimeControl "5400+30"]

{[%evp 13,120,33,48,48,50,51,39,24,38,38,33,26,21,22,21,8,8,20,18,12,21,25,22,38,114,112,111,107,109,107,107,112,117,116,152,145,160,158,156,140,148,135,184,162,230,229,225,225,300,294,289,294,266,250,315,311,316,303,281,282,374,251,360,348,360,375,368,353,365,349,302,151,156,35,35,35,51,45,45,59,550,421,1348,1321,1284,664,2167,2137,12791,0,4631,4183,3672,596,592,0,8,0,0,0,0,0,0,0,0,0,0,0,0]} 1. d4 {[%emt 0:03:10]} d5 {[%emt 0:00:02]} 2. c4 {[%emt 0:00:14]} dxc4 {[%emt 0:00:02]} 3. e4 {[%emt 0:00:38]} e5 {[%emt 0:00:02]} 4. Nf3 {[%emt 0:00:20]} exd4 {[%emt 0:00:02]} 5. Bxc4 {[%emt 0:00:26]} Nc6 {[%emt 0:00:03]} 6. O-O {[%emt 0:00:23]} Be6 {[%emt 0:00:02]} 7. Bb5 {[%emt 0:00:52]} Bc5 {[%emt 0:01:25] [#]} 8. b4 $1 {[%emt 0:00:14] D20: Queen's Gambit Accepted: 3 e3 and 3 e4.} Bb6 {[%emt 0:00:10]} 9. a4 $1 {[%emt 0:00:08][%cal Ba2a4,Ba4a5][%mdl 32]} a6 {[%emt 0:00:06]} 10. Bxc6+ {[%emt 0:00:12] White is slightly better.} bxc6 {[%emt 0:00:02]} 11. a5 {[%emt 0:00:15]} Ba7 {[%emt 0:00:01]} 12. Bb2 {[%emt 0:00:25][%cal Rb2d4]} Nf6 {[%emt 0:01:04]} 13. Bxd4 {[%emt 0:03:10]} Nxe4 {[%emt 0:03:49]} 14. Bxa7 {[%emt 0:00:13][%cal Od1c2]} Qxd1 {[%emt 0:00:46]} 15. Rxd1 {[%emt 0:00:04][%cal Od1e1] Threatens to win with Re1!} Rxa7 {[%emt 0:00:06]} 16. Nd4 $36 {[%emt 0:05:35][%mdl 2048] White fights for an advantage.} Bd5 {[%emt 0:10:05]} (16... c5 $5 {[%cal Rc5d4]} 17. Nxe6 fxe6 $14) 17. f3 {[%emt 0:01:52]} Nd6 {[%emt 0:00:49]} 18. Nc3 {[%emt 0:00:59]} O-O {[%emt 0:02:40]} (18... Rb7 $14) 19. Nxd5 $16 {[%emt 0:05:30]} cxd5 {[%emt 0:00:12]} 20. Nc6 {[%emt 0:00:06][%csl LRa7,LRd5][%mdl 64] Discovered Attack} Rb7 {[%emt 0:02:01] [#]} 21. Ne7+ $146 {[%emt 0:03:18]} (21. Rxd5 Re8 $14) ({Predecessor:} 21. Rxd5 Re8 22. Kf2 g6 23. Rc1 Rb5 24. Rdc5 Kg7 25. g4 h6 26. R1c2 Kg8 27. Rxb5 Nxb5 {1-0 Khusnutdinov,R (2491)-Haitin,I (2348) Titled Tuesday intern op 24th Nov blitz 2020 (1)}) 21... Kh8 {[%emt 0:00:03]} 22. Nxd5 {[%emt 0:00:12]} Nb5 {[%emt 0:16:35]} 23. Rac1 {[%emt 0:01:07]} h6 {[%emt 0:01:29]} 24. Rc6 {[%emt 0:04:01]} Ra7 {[%emt 0:05:29]} 25. Nf4 {[%emt 0:04:58] White is much more active.} Nd6 {[%emt 0:01:16]} 26. Kf2 {[%emt 0:20:07]} Rd8 {[%emt 0:06:30]} 27. Rd5 {[%emt 0:06:13]} Re8 {[%emt 0:05:33]} (27... g6 $16 28. g4 Kg7) 28. g4 {[%emt 0:03:15]} g5 {[%emt 0:02:03]} (28... Kh7 {keeps fighting.} 29. h4 Re7) 29. Nd3 $18 {[%emt 0:01:14]} Re6 {[%emt 0:00:18][%cal Od6e4]} 30. Rdc5 {[%emt 0:04:23]} Re7 {[%emt 0:00:37]} 31. Rc1 {[%emt 0:02:34]} f5 {[%emt 0:08:20]} 32. gxf5 {[%emt 0:02:05]} Nxf5 {[%emt 0:00:17]} 33. Nc5 {[%emt 0:00:54]} Re2+ {[%emt 0:00:10]} 34. Kxe2 {[%emt 0:01:28]} Nd4+ {[%emt 0:00:02]} 35. Kd3 {[%emt 0:12:30]} Nxc6 {[%emt 0:00:01][%mdl 4096] Endgame KRN-KRN} 36. Kc3 {[%emt 0:00:12]} Ne5 {[%emt 0:01:00]} 37. Rf1 {[%emt 0:04:58]} c6 {[%emt 0:00:01]} (37... Kg7 {was worth a try.} 38. f4 gxf4) 38. f4 {[%emt 0:01:06]} gxf4 {[%emt 0:04:12]} 39. Rxf4 {[%emt 0:00:03]} Kg7 {[%emt 0:00:01] Dodges Rf6} 40. Rd4 {[%emt 0:03:18] Dodges Nd7} h5 {[%emt 0:03:03]} 41. h4 {[%emt 0:03:37]} Ng6 {[%emt 0:00:46]} 42. Ne6+ {[%emt 0:03:44]} (42. Rd6 $18) 42... Kf6 {[%emt 0:00:59]} 43. Nf4 {[%emt 0:00:05]} ({White should play} 43. Nd8 $16) 43... Nxf4 $14 {[%emt 0:07:14]} 44. Rxf4+ {[%emt 0:00:06] KR-KR} Ke5 {[%emt 0:00:24]} 45. Rf8 {[%emt 0:01:38] Kc4 would be deadly.} (45. Rc4 $5 {[%cal Rc4c6]}) 45... Rg7 $1 {[%emt 0:00:13]} 46. Rh8 {[%emt 0:01:02][%cal Oc3c4] Hoping for Kc4!} Rg3+ $2 {[%emt 0:00:06][%mdl 8192] [#]} (46... Rg4 $14) 47. Kc4 $1 $18 {[%emt 0:00:20]} Rg4+ {[%emt 0:00:24]} (47... Kd6 $142 48. Rh6+ (48. Rxh5 Rg4+ 49. Kc3 c5 $16) 48... Kc7 49. Rxh5 Rg2 50. Rh7+ Kd6 51. Rh6+ Kc7) 48. Kc5 {[%emt 0:00:01]} Rxh4 {[%emt 0:00:17]} 49. Rh6 {[%emt 0:01:45]} ({Not} 49. Kxc6 Rc4+ 50. Kb6 Rxb4+ 51. Kxa6 h4 $11) ({Less strong is} 49. Ra8 Rh1 $14) 49... Rh1 {[%emt 0:03:37]} 50. Kxc6 {[%emt 0:00:00]} Kd4 {[%emt 0:00:05]} 51. Rf6 $2 {[%emt 0:00:06]} (51. Kb6 $18 Rb1 52. Kxa6 Rxb4 53. Rxh5) 51... Rg1 $2 {[%emt 0:01:45][%mdl 8192]} (51... h4 $11) 52. Kb6 {[%emt 0:00:12]} Kc3 {[%emt 0:00:46]} 53. b5 {[%emt 0:00:40]} (53. Kxa6 $142 {aiming for b5.} Kxb4 54. Kb6) 53... axb5 {[%emt 0:00:07]} 54. Rf3+ $2 {[%emt 0:00:44]} (54. Kxb5 $18 {Strongly threatening a6.} Ra1 55. a6) 54... Kd4 {[%emt 0:01:17] The position is equal.} 55. Rf4+ {[%emt 0:00:11]} (55. a6 $5 {[%cal Rf3b3]} Kc4 56. Rf4+ Kc3 57. Rf8 $11 (57. Kxb5 Rg5+ 58. Kb6 Rg6+ 59. Kb5 Rg5+ 60. Kb6 Rg6+ 61. Ka7 Rg7+ 62. Kb8 Rg8+ 63. Kc7 Rg7+ 64. Kc8 Rg8+ 65. Kd7 Rg7+ 66. Ke6 Ra7 $11)) 55... Kc3 {[%emt 0:02:09]} 56. Kxb5 {[%emt 0:00:41]} Rg5+ {[%emt 0:00:36]} 57. Kb6 {[%emt 0:00:07]} Rg6+ {[%emt 0:00:12]} 58. Kb7 {[%emt 0:00:32]} (58. Kb5 $5 Rg5+ $8 59. Kb6 Rg6+ 60. Kc7 $11) 58... Rg7+ {[%emt 0:00:02]} 59. Kc6 {[%emt 0:00:26]} Rg6+ {[%emt 0:00:01]} 60. Kb7 {[%emt 0:00:46]} (60. Kb5 $5 Rg5+ $8 61. Kb6 Rg6+ 62. Kc7 $11) 60... Rg7+ {[%emt 0:00:01] White really could win this.   Weighted Error Value: White=0.32/Black=0.32} 1/2-1/2

[Event "10th Cherry Blossom Classic 2023"]
[Site "Dulles"]
[Date "2023.05.29"]
[Round "8.13"]
[White "Sinha, Sahil"]
[Black "Chabris, Christopher"]
[Result "1-0"]
[ECO "E32"]
[WhiteElo "2317"]
[BlackElo "2053"]
[Annotator "TA"]
[PlyCount "47"]
[EventDate "2023.05.24"]
[EventType "swiss"]
[EventCountry "USA"]
[SourceTitle "playchess.com"]
[Source "ChessBase"]
[SourceQuality "1"]
[TimeControl "5400+30"]

{[%evp 22,47,30,36,35,28,35,11,16,11,129,136,123,112,235,212,227,202,489,498,700,695,967,974,960,914,1301,755]} 1. d4 {[%emt 0:00:02]} Nf6 {[%emt 0:00:13]} 2. c4 {[%emt 0:00:06]} e6 {[%emt 0:00:04]} 3. Nc3 {[%emt 0:00:05]} Bb4 {[%emt 0:00:10]} 4. Qc2 {[%emt 0:00:06]} O-O {[%emt 0:00:16]} 5. Nf3 {[%emt 0:00:14]} d6 {[%emt 0:00:17]} 6. Bd2 {[%emt 0:00:29]} Nbd7 {[%emt 0:02:52]} 7. a3 {[%emt 0:01:29]} Bxc3 {[%emt 0:00:10]} 8. Bxc3 {[%emt 0:00:05]} Qe7 {[%emt 0:10:21]} 9. e3 {[%emt 0:04:08]} b6 {[%emt 0:01:23]} 10. Be2 {[%emt 0:01:22]} Bb7 {[%emt 0:00:22]} 11. b4 {[%emt 0:01:05]} Ne4 {[%emt 0:02:20]} 12. Bb2 {[%emt 0:05:30]} a5 {[%emt 0:05:32] E32: Nimzo-Indian: Classical (4 Qc2): 4...0-0.} 13. O-O {[%emt 0:01:42]} f5 {[%emt 0:03:38]} 14. Rad1 {[%emt 0:03:22] [#]} Rf6 $146 {[%emt 0:23:06] The position is equal.} ({Predecessor:} 14... Ng5 15. d5 axb4 16. axb4 c5 17. b5 Ne4 18. dxe6 Qxe6 19. Ne1 Ne5 20. f3 Nf6 {0-1 Lopez Martinez,J (2581)-Peralta,F (2582) Barcelona Masters 2018 (5.2)}) 15. d5 {[%emt 0:02:20][%cal Bd4d5,Bd5e6][%mdl 32]} Rg6 {[%emt 0:04:24] [#]} (15... Rh6 $11 {remains equal.}) 16. Nd4 $1 $16 {[%emt 0:05:46]} Qg5 {[%emt 0:04:22][%csl Gg6][%cal Rg5g2] [#]} 17. g3 {[%emt 0:03:18]} (17. Nxe6 $2 Qxg2#) 17... Ne5 {[%emt 0:12:18]} (17... Nf8 $16 18. Bf3 Rh6) 18. Nxe6 $18 {[%emt 0:06:44]} (18. dxe6 f4 19. exf4 Qxf4 $17) 18... Rxe6 {[%emt 0:03:29]} 19. dxe6 {[%emt 0:01:13]} Re8 $2 {[%emt 0:07:26]} (19... Ng4 {keeps fighting.}) 20. c5 {[%emt 0:03:56][%cal Bc4c5,Bc5b6][%mdl 32] White is clearly winning.} Qh6 {[%emt 0:07:25]} (20... Nc6 $142 21. cxd6 cxd6) 21. Bxe5 {[%emt 0:04:31]} dxe5 {[%emt 0:04:05]} 22. cxb6 {[%emt 0:02:17]} Ng5 {[%emt 0:00:50]} 23. h4 {[%emt 0:00:17]} (23. bxc7 $2 Nh3#) 23... f4 {[%emt 0:05:47]} 24. Qf5 {[%emt 0:05:21] Black got outplayed after the opening.   Weighted Error Value: White=0.02 (flawless) /Black=0.99} (24. hxg5 $2 Qh1#) 1-0

[Event "10th Cherry Blossom Classic 2023"]
[Site "Dulles"]
[Date "2023.05.29"]
[Round "8.14"]
[White "Brady, Tyson"]
[Black "Morefield, Jason"]
[Result "0-1"]
[ECO "B52"]
[WhiteElo "2092"]
[BlackElo "2167"]
[Annotator "TA"]
[PlyCount "58"]
[EventDate "2023.05.24"]
[EventType "swiss"]
[EventCountry "USA"]
[SourceTitle "playchess.com"]
[Source "ChessBase"]
[SourceQuality "1"]
[TimeControl "5400+30"]

{[%evp 9,58,17,21,20,17,21,30,-38,8,20,17,0,8,-33,-7,-43,-43,-35,-43,-39,-34,-65,-84,-100,-108,-103,-94,-92,-87,-121,-118,-95,-113,-356,-98,-275,-309,-439,-437,-436,-429,-489,-460,-574,-561,-564,-569,-538,-531,-551,-542]} 1. e4 {[%emt 0:00:10]} c5 {[%emt 0:00:09]} 2. Nf3 {[%emt 0:00:09]} d6 {[%emt 0:00:06]} 3. Bb5+ {[%emt 0:00:03]} Bd7 {[%emt 0:00:11]} 4. c4 {[%emt 0:00:03]} Nf6 {[%emt 0:00:21]} 5. Nc3 {[%emt 0:00:06]} g6 {[%emt 0:00:13]} 6. d4 {[%emt 0:01:04] B52: Sicilian: Moscow Variation with 3...Bd7.} cxd4 {[%emt 0:00:08]} 7. Nxd4 {[%emt 0:00:03]} Bg7 {[%emt 0:00:12]} 8. h3 {[%emt 0:00:09]} (8. Bxd7+ $11 Nbxd7 9. O-O) 8... O-O {[%emt 0:00:09]} (8... a6 $15 9. Ba4 Bxa4 10. Qxa4+ Qd7) 9. O-O $11 {[%emt 0:00:20]} a6 {[%emt 0:00:18] 9...a6 scores better than 9...Nc6.} 10. Bxd7 {[%emt 0:00:08]} Nbxd7 {[%emt 0:00:06]} 11. Be3 {[%emt 0:00:02]} Rc8 $1 {[%emt 0:00:23]} 12. Qe2 {[%emt 0:00:39]} (12. Qb3 $5) 12... Ne5 {[%emt 0:01:12]} 13. b3 {[%emt 0:00:54] [#]} b5 $1 {[%emt 0:00:12][%cal Rb5c4]} 14. f4 {[%emt 0:01:25]} Ned7 {[%emt 0:00:07]} 15. Rfd1 {[%emt 0:04:52]} bxc4 {[%emt 0:00:21] [#]} 16. e5 $146 {[%emt 0:02:06]} ({Predecessor:} 16. bxc4 e5 17. fxe5 Nxe5 18. c5 Qa5 19. Rac1 dxc5 20. Nb3 Qb4 21. Qxa6 c4 22. Nd4 {½-½ Svidler,P (2714)-Shankland,S (2709) Saint Louis Rapid 2021 (7)}) 16... Nh5 {[%emt 0:05:12][%cal Oh5f4]} 17. exd6 {[%emt 0:08:35]} exd6 {[%emt 0:04:20]} 18. bxc4 {[%emt 0:02:23]} Nb6 {[%emt 0:02:27]} ({Reject} 18... Ng3 $6 19. Qf3 Rxc4 20. Nd5 $11) 19. Nd5 {[%emt 0:00:21]} Re8 {[%emt 0:07:51]} ({Much weaker is} 19... Nxc4 $6 20. Rac1 Rc5 21. Nc6 Rxc6 22. Rxc4 $11) 20. Nxb6 {[%emt 0:06:17]} Qxb6 {[%emt 0:00:09]} 21. Qd3 {[%emt 0:00:10]} (21. Qd2 $17) 21... Qb7 $2 {[%emt 0:01:54]} (21... Nxf4 $1 $19 {has better winning chances.} 22. Bxf4 Bxd4+ 23. Qxd4 Re1+ 24. Kf2 Qxd4+ {[%mdl 64] Remove Defender, Deflection} 25. Rxd4 Rxa1) 22. f5 $2 {[%emt 0:06:17] [#]} (22. Rab1 $17 Qe4 23. Qxe4 Rxe4 24. Rb3) 22... Qe4 $1 $19 {[%emt 0:02:09]} 23. Bf2 {[%emt 0:01:39] [#]} (23. Bg5 $142) 23... Nf4 $1 {[%emt 0:03:28][%csl Gf4,LRd3,LRg2][%cal Re4g2] Black is clearly winning.} 24. Qxe4 {[%emt 0:00:03]} Rxe4 {[%emt 0:00:06]} 25. Kf1 {[%emt 0:02:44]} Rxc4 {[%emt 0:00:35][%cal Rg7d4]} 26. Rac1 {[%emt 0:00:07]} Rxc1 {[%emt 0:01:16][%mdl 64] Deflection} (26... Rcxd4 $2 27. Rc8+ Bf8 28. Rxd4 gxf5 29. Rxd6 $18) ({Stronger than} 26... Rexd4 27. Bxd4 Rxc1 28. Rxc1 Bxd4 29. Rc6 $17) 27. Rxc1 {[%emt 0:00:03]} Bxd4 {[%emt 0:00:24]} 28. Rc4 {[%emt 0:00:01]} Ne2 {[%emt 0:01:45]} 29. f6 {[%emt 0:00:02] Threatening mate with Rc8+.} h6 {[%emt 0:00:34] Weighted Error Value: White=0.52/Black=0.15 (very precise)} 0-1